[Event "Titled Tuesday Blitz April 18 Early 2023"]
[White "Fuzesabonyilaci"]
[Black "Birkisson, Bardur Orn"]
[BlackFideId "2310597"]
[WhiteElo "2328"]
[BlackElo "2062"]
[Result "1-0"]
[Round "07"]
[TimeControl "180+2"]
[Date "2023.04.18"]
[WhiteClock "0:00:06"]
[BlackClock "0:00:02"]

1. e4 {[%clk 0:03:00]}  Nf6 {[%clk 0:02:53]} 2. e5 {[%clk 0:03:00]}  Nd5 {[%clk 0:02:53]} 3. d4 {[%clk 0:03:01]}  d6 {[%clk 0:02:53]} 4. c4 {[%clk 0:03:00]}  Nb6 {[%clk 0:02:54]} 5. exd6 {[%clk 0:03:00]}  exd6 {[%clk 0:02:54]} 6. Nc3 {[%clk 0:02:59]}  Be7 {[%clk 0:02:54]} 7. Bd3 {[%clk 0:02:57]}  O-O {[%clk 0:02:51]} 8. Nge2 {[%clk 0:02:57]}  Bg4 {[%clk 0:02:49]} 9. f3 {[%clk 0:02:57]}  Bh5 {[%clk 0:02:49]} 10. O-O {[%clk 0:02:56]}  c6 {[%clk 0:02:46]} 11. Nf4 {[%clk 0:02:43]}  Bg6 {[%clk 0:02:43]} 12. Nxg6 {[%clk 0:02:43]}  hxg6 {[%clk 0:02:43]} 13. Be3 {[%clk 0:02:43]}  Na6 {[%clk 0:02:39]} 14. b3 {[%clk 0:02:41]}  Nc7 {[%clk 0:02:35]} 15. Re1 {[%clk 0:02:38]}  Bf6 {[%clk 0:02:29]} 16. Ne4 {[%clk 0:02:37]}  d5 {[%clk 0:02:23]} 17. Nxf6+ {[%clk 0:02:28]}  Qxf6 {[%clk 0:02:21]} 18. c5 {[%clk 0:02:29]}  Nd7 {[%clk 0:02:14]} 19. b4 {[%clk 0:02:25]}  Ne6 {[%clk 0:01:54]} 20. Bf1 {[%clk 0:02:21]}  Rfe8 {[%clk 0:01:50]} 21. Qd2 {[%clk 0:02:14]}  b6 {[%clk 0:01:46]} 22. b5 {[%clk 0:01:51]}  bxc5 {[%clk 0:01:33]} 23. bxc6 {[%clk 0:01:48]}  Nb8 {[%clk 0:01:26]} 24. dxc5 {[%clk 0:01:43]}  Nxc6 {[%clk 0:01:20]} 25. Qxd5 {[%clk 0:01:42]}  Ne7 {[%clk 0:00:57]} 26. Qc4 {[%clk 0:01:34]}  Nf5 {[%clk 0:00:55]} 27. Bf2 {[%clk 0:01:33]}  Rac8 {[%clk 0:00:31]} 28. Rac1 {[%clk 0:01:24]}  Rc7 {[%clk 0:00:23]} 29. c6 {[%clk 0:01:19]}  Rec8 {[%clk 0:00:22]} 30. Qa4 {[%clk 0:01:15]}  Ned4 {[%clk 0:00:13]} 31. Ba6 {[%clk 0:01:05]}  Rxc6 {[%clk 0:00:13]} 32. Bxc8 {[%clk 0:00:50]}  Rxc1 {[%clk 0:00:13]} 33. Qe8+ {[%clk 0:00:30]}  Kh7 {[%clk 0:00:12]} 34. Rxc1 {[%clk 0:00:30]}  Nxf3+ {[%clk 0:00:08]} 35. gxf3 {[%clk 0:00:29]}  Qg5+ {[%clk 0:00:08]} 36. Kf1 {[%clk 0:00:19]}  Qxc1+ {[%clk 0:00:06]} 37. Kg2 {[%clk 0:00:19]}  Qg5+ {[%clk 0:00:05]} 38. Bg3 {[%clk 0:00:19]}  Qd2+ {[%clk 0:00:04]} 39. Kf1 {[%clk 0:00:17]}  Qc1+ {[%clk 0:00:05]} 40. Kf2 {[%clk 0:00:15]}  Qd2+ {[%clk 0:00:05]} 41. Qe2 {[%clk 0:00:14]}  Qd4+ {[%clk 0:00:05]} 42. Kg2 {[%clk 0:00:11]}  Ne3+ {[%clk 0:00:04]} 43. Kh3 {[%clk 0:00:10]}  Nd5 {[%clk 0:00:02]} 44. Qe4 {[%clk 0:00:06]} 1-0


[Site "https://www.chess.com"]

[Event "Titled Tuesday Blitz April 18 Early 2023"]
[White "Theytookourjobs"]
[Black "Namitbir Singh Walia"]
[BlackFideId "35071068"]
[WhiteElo "2314"]
[BlackElo "2239"]
[Result "1/2-1/2"]
[Round "07"]
[TimeControl "180+2"]
[Date "2023.04.18"]
[WhiteClock "0:00:22"]
[BlackClock "0:00:11"]

1. d4 {[%clk 0:02:59]}  Nf6 {[%clk 0:02:59]} 2. Bf4 {[%clk 0:02:55]}  d5 {[%clk 0:02:54]} 3. e3 {[%clk 0:02:54]}  c5 {[%clk 0:02:55]} 4. Nc3 {[%clk 0:02:53]}  Nc6 {[%clk 0:02:55]} 5. Nb5 {[%clk 0:02:54]}  e5 {[%clk 0:02:46]} 6. Bxe5 {[%clk 0:02:54]}  Nxe5 {[%clk 0:02:44]} 7. dxe5 {[%clk 0:02:55]}  Ng4 {[%clk 0:02:11]} 8. Qxd5 {[%clk 0:02:01]}  Qxd5 {[%clk 0:02:11]} 9. Nc7+ {[%clk 0:02:01]}  Kd7 {[%clk 0:02:11]} 10. Nxd5 {[%clk 0:02:02]}  Kc6 {[%clk 0:02:12]} 11. c4 {[%clk 0:01:56]}  Nxe5 {[%clk 0:02:11]} 12. Nf3 {[%clk 0:01:53]}  Nxf3+ {[%clk 0:02:04]} 13. gxf3 {[%clk 0:01:54]}  Be6 {[%clk 0:02:03]} 14. O-O-O {[%clk 0:01:53]}  g6 {[%clk 0:01:56]} 15. f4 {[%clk 0:01:49]}  Rd8 {[%clk 0:00:58]} 16. Bg2 {[%clk 0:01:49]}  Bg7 {[%clk 0:00:55]} 17. Rd2 {[%clk 0:01:31]}  Kd7 {[%clk 0:00:39]} 18. Rhd1 {[%clk 0:01:26]}  Kc8 {[%clk 0:00:36]} 19. Be4 {[%clk 0:00:48]}  f5 {[%clk 0:00:32]} 20. Bf3 {[%clk 0:00:44]}  b6 {[%clk 0:00:32]} 21. Ne7+ {[%clk 0:00:37]}  Kc7 {[%clk 0:00:29]} 22. Rxd8 {[%clk 0:00:37]}  Rxd8 {[%clk 0:00:28]} 23. Rxd8 {[%clk 0:00:37]}  Kxd8 {[%clk 0:00:28]} 24. Nd5 {[%clk 0:00:23]}  Kd7 {[%clk 0:00:27]} 25. b3 {[%clk 0:00:23]}  Kd6 {[%clk 0:00:27]} 26. Kc2 {[%clk 0:00:23]}  Bd7 {[%clk 0:00:22]} 27. Kd3 {[%clk 0:00:23]}  Bc6 {[%clk 0:00:20]} 28. Ke2 {[%clk 0:00:22]}  b5 {[%clk 0:00:16]} 29. Kd3 {[%clk 0:00:22]}  a6 {[%clk 0:00:16]} 30. Bg2 {[%clk 0:00:21]}  Bb7 {[%clk 0:00:15]} 31. Bf3 {[%clk 0:00:21]}  h6 {[%clk 0:00:15]} 32. Bg2 {[%clk 0:00:22]}  g5 {[%clk 0:00:14]} 33. fxg5 {[%clk 0:00:21]}  hxg5 {[%clk 0:00:15]} 34. Bf3 {[%clk 0:00:21]}  g4 {[%clk 0:00:14]} 35. Bg2 {[%clk 0:00:21]}  Be5 {[%clk 0:00:14]} 36. e4 {[%clk 0:00:21]}  fxe4+ {[%clk 0:00:13]} 37. Bxe4 {[%clk 0:00:21]}  Bxh2 {[%clk 0:00:14]} 38. Bf5 {[%clk 0:00:20]}  Bg1 {[%clk 0:00:07]} 39. Bxg4 {[%clk 0:00:19]}  Bxf2 {[%clk 0:00:08]} 40. Be2 {[%clk 0:00:18]}  Bd4 {[%clk 0:00:08]} 41. Nc3 {[%clk 0:00:18]}  Bc6 {[%clk 0:00:08]} 42. cxb5 {[%clk 0:00:18]}  axb5 {[%clk 0:00:09]} 43. Kc2 {[%clk 0:00:18]}  b4 {[%clk 0:00:08]} 44. Nb5+ {[%clk 0:00:18]}  Ke5 {[%clk 0:00:08]} 45. Nxd4 {[%clk 0:00:19]}  Kxd4 {[%clk 0:00:08]} 46. Bc4 {[%clk 0:00:19]}  Be4+ {[%clk 0:00:08]} 47. Kb2 {[%clk 0:00:19]}  Bd3 {[%clk 0:00:07]} 48. Bg8 {[%clk 0:00:19]}  Ke3 {[%clk 0:00:07]} 49. Bf7 {[%clk 0:00:19]}  Kd2 {[%clk 0:00:07]} 50. Bg8 {[%clk 0:00:20]}  Bb5 {[%clk 0:00:07]} 51. Bf7 {[%clk 0:00:20]}  Bc6 {[%clk 0:00:07]} 52. Bg8 {[%clk 0:00:20]}  Be4 {[%clk 0:00:08]} 53. Bf7 {[%clk 0:00:20]}  Bc6 {[%clk 0:00:08]} 54. Bg8 {[%clk 0:00:21]}  Bb7 {[%clk 0:00:09]} 55. Bf7 {[%clk 0:00:21]}  Ba6 {[%clk 0:00:10]} 56. Bg8 {[%clk 0:00:22]}  Kd3 {[%clk 0:00:10]} 57. Bf7 {[%clk 0:00:22]}  Kd4 {[%clk 0:00:10]} 58. Bg8 {[%clk 0:00:22]}  Bb7 {[%clk 0:00:09]} 59. Bf7 {[%clk 0:00:22]}  Be4 {[%clk 0:00:09]} 60. a3 {[%clk 0:00:21]}  bxa3+ {[%clk 0:00:08]} 61. Kxa3 {[%clk 0:00:21]}  Kc3 {[%clk 0:00:09]} 62. Bg8 {[%clk 0:00:22]}  Bc2 {[%clk 0:00:08]} 63. Bf7 {[%clk 0:00:21]}  Bd1 {[%clk 0:00:08]} 64. Bg8 {[%clk 0:00:21]}  Bf3 {[%clk 0:00:08]} 65. Bf7 {[%clk 0:00:21]}  Bc6 {[%clk 0:00:08]} 66. Bg8 {[%clk 0:00:21]}  Kd4 {[%clk 0:00:07]} 67. Kb2 {[%clk 0:00:21]}  Bd5 {[%clk 0:00:08]} 68. Bxd5 {[%clk 0:00:20]}  Kxd5 {[%clk 0:00:09]} 69. Kc3 {[%clk 0:00:21]}  Kd6 {[%clk 0:00:09]} 70. Kc4 {[%clk 0:00:21]}  Kc6 {[%clk 0:00:10]} 71. b4 {[%clk 0:00:21]}  cxb4 {[%clk 0:00:11]} 72. Kxb4 {[%clk 0:00:22]} 1/2-1/2


[Site "https://www.chess.com"]

[Event "Titled Tuesday Blitz April 18 Early 2023"]
[White "Makhmudov, Shukhrat"]
[Black "Estrada Nieto, Julian"]
[WhiteFideId "14200775"]
[BlackFideId "5101018"]
[WhiteElo "2135"]
[BlackElo "2161"]
[Result "0-1"]
[Round "07"]
[TimeControl "180+2"]
[Date "2023.04.18"]
[WhiteClock "0:00:23"]
[BlackClock "0:00:19"]

1. e4 {[%clk 0:02:41]}  e5 {[%clk 0:02:59]} 2. Nf3 {[%clk 0:02:33]}  Nc6 {[%clk 0:02:59]} 3. Bb5 {[%clk 0:02:32]}  a6 {[%clk 0:02:59]} 4. Ba4 {[%clk 0:02:32]}  Nf6 {[%clk 0:03:00]} 5. O-O {[%clk 0:02:32]}  Be7 {[%clk 0:02:59]} 6. Bxc6 {[%clk 0:02:32]}  dxc6 {[%clk 0:02:58]} 7. d3 {[%clk 0:02:32]}  Nd7 {[%clk 0:02:58]} 8. Nbd2 {[%clk 0:02:32]}  O-O {[%clk 0:02:58]} 9. Nc4 {[%clk 0:02:33]}  f6 {[%clk 0:02:58]} 10. Nh4 {[%clk 0:02:33]}  Nc5 {[%clk 0:02:57]} 11. Ne3 {[%clk 0:02:32]}  g6 {[%clk 0:02:50]} 12. Nf3 {[%clk 0:02:28]}  Ne6 {[%clk 0:02:47]} 13. Nc4 {[%clk 0:02:25]}  Nd4 {[%clk 0:02:45]} 14. Nxd4 {[%clk 0:02:20]}  exd4 {[%clk 0:02:34]} 15. f4 {[%clk 0:02:18]}  Be6 {[%clk 0:02:33]} 16. b3 {[%clk 0:02:15]}  b5 {[%clk 0:02:26]} 17. Nd2 {[%clk 0:02:10]}  Qd7 {[%clk 0:02:23]} 18. Nf3 {[%clk 0:02:09]}  c5 {[%clk 0:02:20]} 19. a4 {[%clk 0:02:01]}  Rfd8 {[%clk 0:02:04]} 20. Bd2 {[%clk 0:01:56]}  c4 {[%clk 0:02:03]} 21. bxc4 {[%clk 0:01:16]}  bxc4 {[%clk 0:02:02]} 22. e5 {[%clk 0:01:02]}  c3 {[%clk 0:01:44]} 23. Be1 {[%clk 0:00:58]}  f5 {[%clk 0:01:36]} 24. Bf2 {[%clk 0:00:50]}  c5 {[%clk 0:01:36]} 25. Qe1 {[%clk 0:00:42]}  Rab8 {[%clk 0:01:33]} 26. Bh4 {[%clk 0:00:42]}  Rb2 {[%clk 0:01:29]} 27. Bxe7 {[%clk 0:00:30]}  Qxe7 {[%clk 0:01:29]} 28. Qf2 {[%clk 0:00:21]}  Rdb8 {[%clk 0:01:23]} 29. Ng5 {[%clk 0:00:21]}  Bd5 {[%clk 0:01:22]} 30. Rfe1 {[%clk 0:00:18]}  h6 {[%clk 0:00:51]} 31. Nh3 {[%clk 0:00:18]}  R8b6 {[%clk 0:00:39]} 32. Re2 {[%clk 0:00:18]}  Rb1+ {[%clk 0:00:38]} 33. Rxb1 {[%clk 0:00:18]}  Rxb1+ {[%clk 0:00:38]} 34. Re1 {[%clk 0:00:19]}  Qb7 {[%clk 0:00:37]} 35. Qg3 {[%clk 0:00:18]}  Kh7 {[%clk 0:00:33]} 36. Kf2 {[%clk 0:00:16]}  Qb2 {[%clk 0:00:30]} 37. Ng1 {[%clk 0:00:10]}  Qxc2+ {[%clk 0:00:29]} 38. Ne2 {[%clk 0:00:07]}  Rxe1 {[%clk 0:00:28]} 39. Kxe1 {[%clk 0:00:07]}  Qd2+ {[%clk 0:00:28]} 40. Kf2 {[%clk 0:00:07]}  c2 {[%clk 0:00:27]} 41. Qh4 {[%clk 0:00:07]}  Qe3+ {[%clk 0:00:24]} 42. Kf1 {[%clk 0:00:05]}  c1=Q+ {[%clk 0:00:25]} 43. Nxc1 {[%clk 0:00:05]}  Qxc1+ {[%clk 0:00:25]} 44. Ke2 {[%clk 0:00:06]}  Qc2+ {[%clk 0:00:24]} 45. Ke1 {[%clk 0:00:06]}  Qb1+ {[%clk 0:00:21]} 46. Ke2 {[%clk 0:00:06]}  Qb7 {[%clk 0:00:21]} 47. Qf6 {[%clk 0:00:06]}  Qf7 {[%clk 0:00:21]} 48. Qd6 {[%clk 0:00:06]}  c4 {[%clk 0:00:18]} 49. dxc4 {[%clk 0:00:06]}  Bxc4+ {[%clk 0:00:18]} 50. Kd2 {[%clk 0:00:07]}  d3 {[%clk 0:00:18]} 51. Qd4 {[%clk 0:00:07]}  Qd5 {[%clk 0:00:17]} 52. Qa7+ {[%clk 0:00:07]}  Qf7 {[%clk 0:00:17]} 53. Qd4 {[%clk 0:00:06]}  a5 {[%clk 0:00:15]} 54. h4 {[%clk 0:00:05]}  h5 {[%clk 0:00:15]} 55. g3 {[%clk 0:00:05]}  Qc7 {[%clk 0:00:15]} 56. Qd6 {[%clk 0:00:04]}  Qxd6 {[%clk 0:00:14]} 57. exd6 {[%clk 0:00:05]}  Be6 {[%clk 0:00:14]} 58. Kxd3 {[%clk 0:00:06]}  Bd7 {[%clk 0:00:14]} 59. Kd4 {[%clk 0:00:07]}  Bxa4 {[%clk 0:00:14]} 60. Kc5 {[%clk 0:00:08]}  Kg7 {[%clk 0:00:14]} 61. Kb6 {[%clk 0:00:08]}  Kf7 {[%clk 0:00:12]} 62. Kxa5 {[%clk 0:00:09]}  Bd7 {[%clk 0:00:13]} 63. Kb6 {[%clk 0:00:10]}  Ke6 {[%clk 0:00:14]} 64. Kb7 {[%clk 0:00:11]}  Kxd6 {[%clk 0:00:13]} 65. Kb6 {[%clk 0:00:11]}  Be6 {[%clk 0:00:14]} 66. Kb5 {[%clk 0:00:11]}  Kd5 {[%clk 0:00:15]} 67. Kb4 {[%clk 0:00:11]}  Ke4 {[%clk 0:00:15]} 68. Kc3 {[%clk 0:00:12]}  Kf3 {[%clk 0:00:15]} 69. Kd2 {[%clk 0:00:13]}  Kxg3 {[%clk 0:00:15]} 70. Ke1 {[%clk 0:00:13]}  Kxf4 {[%clk 0:00:16]} 71. Kf1 {[%clk 0:00:14]}  Kg4 {[%clk 0:00:16]} 72. Kg1 {[%clk 0:00:15]}  Kxh4 {[%clk 0:00:16]} 73. Kg2 {[%clk 0:00:16]}  Kg4 {[%clk 0:00:17]} 74. Kh2 {[%clk 0:00:16]}  Bd5 {[%clk 0:00:18]} 75. Kg1 {[%clk 0:00:16]}  f4 {[%clk 0:00:18]} 76. Kh2 {[%clk 0:00:17]}  h4 {[%clk 0:00:19]} 77. Kg1 {[%clk 0:00:18]}  g5 {[%clk 0:00:19]} 78. Kf2 {[%clk 0:00:19]}  Be6 {[%clk 0:00:19]} 79. Kg1 {[%clk 0:00:20]}  Bd7 {[%clk 0:00:20]} 80. Kh2 {[%clk 0:00:21]}  f3 {[%clk 0:00:20]} 81. Kg1 {[%clk 0:00:22]}  Kg3 {[%clk 0:00:20]} 82. Kh1 {[%clk 0:00:22]}  Bc6 {[%clk 0:00:19]} 83. Kg1 {[%clk 0:00:22]}  f2+ {[%clk 0:00:19]} 84. Kf1 {[%clk 0:00:23]}  Bb5# {[%clk 0:00:19]} 0-1


[Site "https://www.chess.com"]

[Event "Titled Tuesday Blitz April 18 Early 2023"]
[White "lluiss"]
[Black "Bas Mas, Jose Joaquin"]
[BlackFideId "22219064"]
[WhiteElo "2283"]
[BlackElo "2233"]
[Result "0-1"]
[Round "07"]
[TimeControl "180+2"]
[Date "2023.04.18"]
[WhiteClock "0:01:26"]
[BlackClock "0:01:55"]

1. Nf3 {[%clk 0:03:00]}  Nf6 {[%clk 0:02:59]} 2. c4 {[%clk 0:02:59]}  e6 {[%clk 0:02:59]} 3. b3 {[%clk 0:02:58]}  a6 {[%clk 0:02:59]} 4. g3 {[%clk 0:02:56]}  b5 {[%clk 0:03:00]} 5. Bg2 {[%clk 0:02:57]}  Bb7 {[%clk 0:03:00]} 6. O-O {[%clk 0:02:57]}  c5 {[%clk 0:03:00]} 7. Bb2 {[%clk 0:02:56]}  d6 {[%clk 0:02:59]} 8. e3 {[%clk 0:02:42]}  Nbd7 {[%clk 0:02:58]} 9. Qe2 {[%clk 0:02:42]}  Be7 {[%clk 0:02:58]} 10. Rd1 {[%clk 0:02:42]}  O-O {[%clk 0:02:58]} 11. cxb5 {[%clk 0:02:41]}  axb5 {[%clk 0:02:58]} 12. a4 {[%clk 0:02:31]}  b4 {[%clk 0:02:51]} 13. d4 {[%clk 0:02:28]}  Ba6 {[%clk 0:02:46]} 14. Qd2 {[%clk 0:02:23]}  Rc8 {[%clk 0:02:44]} 15. dxc5 {[%clk 0:02:05]}  Nxc5 {[%clk 0:02:40]} 16. Nd4 {[%clk 0:01:58]}  d5 {[%clk 0:02:27]} 17. Nb5 {[%clk 0:01:46]}  Nxb3 {[%clk 0:02:23]} 18. Qe2 {[%clk 0:01:41]}  Nxa1 {[%clk 0:02:16]} 19. Bxa1 {[%clk 0:01:42]}  Qa5 {[%clk 0:02:15]} 20. Qb2 {[%clk 0:01:27]}  Qxa4 {[%clk 0:02:09]} 21. Nd4 {[%clk 0:01:27]}  Bc4 {[%clk 0:01:57]} 22. Nd2 {[%clk 0:01:26]}  Qxd1+ {[%clk 0:01:55]} 0-1


[Site "https://www.chess.com"]

[Event "Titled Tuesday Blitz April 18 Early 2023"]
[White "Smietanska, Wiktoria"]
[Black "Gonzalez, Francisco Silva"]
[WhiteFideId "21869359"]
[BlackFideId "1512285"]
[WhiteElo "1995"]
[BlackElo "2074"]
[Result "1-0"]
[Round "07"]
[TimeControl "180+2"]
[Date "2023.04.18"]
[WhiteClock "0:00:05"]
[BlackClock "0:00:04"]

1. c4 {[%clk 0:02:56]}  e6 {[%clk 0:02:55]} 2. Nc3 {[%clk 0:02:56]}  d6 {[%clk 0:02:55]} 3. d4 {[%clk 0:02:55]}  g6 {[%clk 0:02:53]} 4. e4 {[%clk 0:02:41]}  Bg7 {[%clk 0:02:53]} 5. Nf3 {[%clk 0:02:41]}  Nd7 {[%clk 0:02:52]} 6. Be3 {[%clk 0:02:42]}  c5 {[%clk 0:02:50]} 7. Qd2 {[%clk 0:02:41]}  h6 {[%clk 0:02:48]} 8. Rd1 {[%clk 0:02:38]}  cxd4 {[%clk 0:02:38]} 9. Nxd4 {[%clk 0:02:37]}  a6 {[%clk 0:02:36]} 10. Nb3 {[%clk 0:02:25]}  Bf8 {[%clk 0:02:23]} 11. c5 {[%clk 0:01:47]}  Ngf6 {[%clk 0:02:18]} 12. cxd6 {[%clk 0:01:44]}  b5 {[%clk 0:02:19]} 13. Nd4 {[%clk 0:01:25]}  Bb7 {[%clk 0:02:18]} 14. f3 {[%clk 0:01:20]}  Bg7 {[%clk 0:02:16]} 15. Be2 {[%clk 0:01:15]}  O-O {[%clk 0:02:15]} 16. Bxh6 {[%clk 0:01:11]}  Rc8 {[%clk 0:02:13]} 17. O-O {[%clk 0:01:05]}  b4 {[%clk 0:01:56]} 18. Na4 {[%clk 0:01:03]}  Qa5 {[%clk 0:01:54]} 19. b3 {[%clk 0:00:49]}  Nc5 {[%clk 0:01:53]} 20. Nxc5 {[%clk 0:00:46]}  Qxc5 {[%clk 0:01:52]} 21. Bxg7 {[%clk 0:00:42]}  Kxg7 {[%clk 0:01:51]} 22. Kh1 {[%clk 0:00:40]}  Nd7 {[%clk 0:01:47]} 23. Rc1 {[%clk 0:00:36]}  Qa5 {[%clk 0:01:45]} 24. Bc4 {[%clk 0:00:30]}  Qe5 {[%clk 0:01:31]} 25. Qb2 {[%clk 0:00:24]}  Kg8 {[%clk 0:01:29]} 26. Rcd1 {[%clk 0:00:17]}  a5 {[%clk 0:01:27]} 27. Rd2 {[%clk 0:00:07]}  a4 {[%clk 0:01:26]} 28. Nb5 {[%clk 0:00:05]}  Qxb2 {[%clk 0:01:23]} 29. Rxb2 {[%clk 0:00:06]}  a3 {[%clk 0:01:22]} 30. Rd2 {[%clk 0:00:06]}  Rc5 {[%clk 0:01:22]} 31. Nc7 {[%clk 0:00:06]}  Rc8 {[%clk 0:01:19]} 32. Nxe6 {[%clk 0:00:06]}  fxe6 {[%clk 0:01:17]} 33. Bxe6+ {[%clk 0:00:06]}  Kg7 {[%clk 0:01:17]} 34. Bxd7 {[%clk 0:00:06]}  Rd8 {[%clk 0:01:17]} 35. Bg4 {[%clk 0:00:03]}  Rc3 {[%clk 0:01:12]} 36. Rfd1 {[%clk 0:00:03]}  Kf6 {[%clk 0:01:11]} 37. Re2 {[%clk 0:00:02]}  Ke5 {[%clk 0:01:10]} 38. f4+ {[%clk 0:00:02]}  Kxf4 {[%clk 0:01:10]} 39. Bf3 {[%clk 0:00:03]}  Ke5 {[%clk 0:01:08]} 40. Red2 {[%clk 0:00:02]}  g5 {[%clk 0:01:07]} 41. h3 {[%clk 0:00:02]}  Rd7 {[%clk 0:01:02]} 42. Kh2 {[%clk 0:00:03]}  Rd8 {[%clk 0:00:58]} 43. Bg4 {[%clk 0:00:03]}  Bxe4 {[%clk 0:00:57]} 44. Re2 {[%clk 0:00:03]}  Kf4 {[%clk 0:00:46]} 45. Rf1+ {[%clk 0:00:02]}  Ke5 {[%clk 0:00:41]} 46. Rfe1 {[%clk 0:00:03]}  Rxd6 {[%clk 0:00:41]} 47. Rxe4+ {[%clk 0:00:04]}  Kf6 {[%clk 0:00:41]} 48. R4e2 {[%clk 0:00:04]}  Rdc6 {[%clk 0:00:38]} 49. Rf1+ {[%clk 0:00:04]}  Kg6 {[%clk 0:00:37]} 50. Bf5+ {[%clk 0:00:05]}  Kh5 {[%clk 0:00:37]} 51. g4+ {[%clk 0:00:04]}  Kh4 {[%clk 0:00:37]} 52. Re8 {[%clk 0:00:03]}  Rxh3+ {[%clk 0:00:36]} 53. Kg2 {[%clk 0:00:03]}  Rg3+ {[%clk 0:00:34]} 54. Kf2 {[%clk 0:00:02]}  Rh6 {[%clk 0:00:32]} 55. Rh1+ {[%clk 0:00:02]}  Rh3 {[%clk 0:00:32]} 56. Rxh3+ {[%clk 0:00:02]}  Kxh3 {[%clk 0:00:33]} 57. Rg8 {[%clk 0:00:03]}  Rd6 {[%clk 0:00:31]} 58. Rxg5 {[%clk 0:00:02]}  Rd2+ {[%clk 0:00:29]} 59. Kf3 {[%clk 0:00:03]}  Kh2 {[%clk 0:00:29]} 60. Rh5+ {[%clk 0:00:03]}  Kg1 {[%clk 0:00:29]} 61. g5 {[%clk 0:00:03]}  Rxa2 {[%clk 0:00:28]} 62. g6 {[%clk 0:00:02]}  Rf2+ {[%clk 0:00:27]} 63. Kg3 {[%clk 0:00:02]}  a2 {[%clk 0:00:27]} 64. g7 {[%clk 0:00:01]}  a1=Q {[%clk 0:00:23]} 65. g8=Q {[%clk 0:00:01]}  Qe5+ {[%clk 0:00:22]} 66. Kh3+ {[%clk 0:00:01]}  Kh1 {[%clk 0:00:15]} 67. Kg4+ {[%clk 0:00:01]}  Kg1 {[%clk 0:00:14]} 68. Kh4+ {[%clk 0:00:01]}  Kh1 {[%clk 0:00:14]} 69. Kg5+ {[%clk 0:00:01]}  Kg1 {[%clk 0:00:14]} 70. Kh6+ {[%clk 0:00:02]}  Rg2 {[%clk 0:00:14]} 71. Rg5 {[%clk 0:00:02]}  Qh2+ {[%clk 0:00:12]} 72. Kg6 {[%clk 0:00:02]}  Rxg5+ {[%clk 0:00:12]} 73. Kxg5 {[%clk 0:00:02]}  Qg3+ {[%clk 0:00:12]} 74. Bg4 {[%clk 0:00:03]}  Qe5+ {[%clk 0:00:12]} 75. Kh4 {[%clk 0:00:03]}  Qh2+ {[%clk 0:00:12]} 76. Kg5 {[%clk 0:00:03]}  Qe5+ {[%clk 0:00:10]} 77. Kg6 {[%clk 0:00:03]}  Qe4+ {[%clk 0:00:09]} 78. Bf5 {[%clk 0:00:03]}  Qc6+ {[%clk 0:00:08]} 79. Kh5+ {[%clk 0:00:03]}  Kf2 {[%clk 0:00:07]} 80. Qg4 {[%clk 0:00:03]}  Qc5 {[%clk 0:00:06]} 81. Qg5 {[%clk 0:00:01]}  Ke2 {[%clk 0:00:05]} 82. Qg4+ {[%clk 0:00:02]}  Kd2 {[%clk 0:00:04]} 83. Qf4+ {[%clk 0:00:02]}  Kc3 {[%clk 0:00:04]} 84. Qf3+ {[%clk 0:00:02]}  Kb2 {[%clk 0:00:03]} 85. Kg4 {[%clk 0:00:02]}  Qd4+ {[%clk 0:00:03]} 86. Kg3 {[%clk 0:00:02]}  Qc3 {[%clk 0:00:02]} 87. Qxc3+ {[%clk 0:00:01]}  bxc3 {[%clk 0:00:03]} 88. b4 {[%clk 0:00:02]}  Kb3 {[%clk 0:00:03]} 89. b5 {[%clk 0:00:02]}  c2 {[%clk 0:00:03]} 90. Bxc2+ {[%clk 0:00:02]}  Kc4 {[%clk 0:00:03]} 91. b6 {[%clk 0:00:03]}  Kc5 {[%clk 0:00:04]} 92. b7 {[%clk 0:00:04]}  Kc6 {[%clk 0:00:04]} 93. b8=Q {[%clk 0:00:05]} 1-0


[Site "https://www.chess.com"]

[Event "Titled Tuesday Blitz April 18 Early 2023"]
[White "Kopczynski, Michal"]
[Black "Tyagi, Kushan"]
[WhiteFideId "1124200"]
[BlackFideId "2040069"]
[WhiteElo "2212"]
[BlackElo "2283"]
[Result "1/2-1/2"]
[Round "07"]
[TimeControl "180+2"]
[Date "2023.04.18"]
[WhiteClock "0:00:09"]
[BlackClock "0:00:04"]

1. e4 {[%clk 0:03:00]}  c5 {[%clk 0:02:59]} 2. d4 {[%clk 0:02:59]}  cxd4 {[%clk 0:02:59]} 3. c3 {[%clk 0:03:00]}  Nf6 {[%clk 0:02:58]} 4. Bd3 {[%clk 0:02:59]}  dxc3 {[%clk 0:02:56]} 5. Nxc3 {[%clk 0:03:00]}  Nc6 {[%clk 0:02:55]} 6. f4 {[%clk 0:03:01]}  d6 {[%clk 0:02:51]} 7. Nf3 {[%clk 0:03:02]}  Bg4 {[%clk 0:02:49]} 8. O-O {[%clk 0:03:02]}  e6 {[%clk 0:02:49]} 9. Kh1 {[%clk 0:03:02]}  Be7 {[%clk 0:02:49]} 10. Qe1 {[%clk 0:03:02]}  O-O {[%clk 0:02:42]} 11. Be3 {[%clk 0:03:02]}  a6 {[%clk 0:02:41]} 12. Rd1 {[%clk 0:03:01]}  Qc7 {[%clk 0:02:36]} 13. Qg3 {[%clk 0:02:59]}  b5 {[%clk 0:02:25]} 14. e5 {[%clk 0:02:55]}  dxe5 {[%clk 0:02:23]} 15. fxe5 {[%clk 0:02:54]}  Bxf3 {[%clk 0:02:19]} 16. exf6 {[%clk 0:02:53]}  Qxg3 {[%clk 0:02:17]} 17. hxg3 {[%clk 0:02:54]}  Bxd1 {[%clk 0:01:57]} 18. fxe7 {[%clk 0:02:54]}  Nxe7 {[%clk 0:01:56]} 19. Nxd1 {[%clk 0:02:47]}  Rfd8 {[%clk 0:01:55]} 20. Be4 {[%clk 0:02:44]}  Rac8 {[%clk 0:01:51]} 21. Bb7 {[%clk 0:02:38]}  Rc2 {[%clk 0:01:49]} 22. Bxa6 {[%clk 0:02:35]}  Nf5 {[%clk 0:01:48]} 23. Bf4 {[%clk 0:02:29]}  g5 {[%clk 0:01:32]} 24. Be5 {[%clk 0:02:21]}  Rd5 {[%clk 0:01:13]} 25. g4 {[%clk 0:02:15]}  Rxe5 {[%clk 0:01:05]} 26. gxf5 {[%clk 0:02:13]}  exf5 {[%clk 0:01:05]} 27. a4 {[%clk 0:01:31]}  bxa4 {[%clk 0:00:53]} 28. Bd3 {[%clk 0:01:31]}  Rd2 {[%clk 0:00:48]} 29. Bc4 {[%clk 0:01:22]}  h5 {[%clk 0:00:39]} 30. b4 {[%clk 0:01:00]}  Rd4 {[%clk 0:00:28]} 31. Ba2 {[%clk 0:00:50]}  Rxb4 {[%clk 0:00:28]} 32. Nc3 {[%clk 0:00:50]}  a3 {[%clk 0:00:25]} 33. Kh2 {[%clk 0:00:34]}  h4 {[%clk 0:00:24]} 34. Rd1 {[%clk 0:00:28]}  Rc5 {[%clk 0:00:18]} 35. Nd5 {[%clk 0:00:27]}  Rb2 {[%clk 0:00:16]} 36. Ra1 {[%clk 0:00:13]}  Rxa2 {[%clk 0:00:11]} 37. Rxa2 {[%clk 0:00:14]}  Rxd5 {[%clk 0:00:11]} 38. Rxa3 {[%clk 0:00:15]}  Kg7 {[%clk 0:00:11]} 39. Ra6 {[%clk 0:00:14]}  f6 {[%clk 0:00:11]} 40. Kh3 {[%clk 0:00:14]}  Kg6 {[%clk 0:00:11]} 41. Kh2 {[%clk 0:00:14]}  Rd4 {[%clk 0:00:10]} 42. Kh3 {[%clk 0:00:15]}  Rd3+ {[%clk 0:00:11]} 43. Kh2 {[%clk 0:00:15]}  g4 {[%clk 0:00:11]} 44. Kg1 {[%clk 0:00:14]}  Kg5 {[%clk 0:00:11]} 45. Kf1 {[%clk 0:00:15]}  g3 {[%clk 0:00:10]} 46. Ke2 {[%clk 0:00:15]}  Rb3 {[%clk 0:00:10]} 47. Ra8 {[%clk 0:00:15]}  Rb2+ {[%clk 0:00:10]} 48. Kf1 {[%clk 0:00:14]}  Kg4 {[%clk 0:00:10]} 49. Rg8+ {[%clk 0:00:13]}  Kf4 {[%clk 0:00:10]} 50. Rh8 {[%clk 0:00:13]}  Rf2+ {[%clk 0:00:09]} 51. Kg1 {[%clk 0:00:13]}  Rb2 {[%clk 0:00:05]} 52. Kf1 {[%clk 0:00:11]}  Ke3 {[%clk 0:00:04]} 53. Re8+ {[%clk 0:00:09]}  Kf4 {[%clk 0:00:04]} 54. Rh8 {[%clk 0:00:09]} 1/2-1/2


[Site "https://www.chess.com"]